Cogmind - Beta 13 @@@ ROGUE MODE // 2024.04.05 @ 11:15:31 Player: Vox Result: Destroyed by S-27 Virus with Autogun Performance ------------- Evolutions (3) 1500 Regions Visited (6) 1200 Robots Destroyed (36) 180 Value Destroyed (1062) 1062 Prototype IDs (1) 20 Alien Tech Used (0) 0 Bonus (54) 54 TOTAL SCORE: 4016 Bonus ------- Follower Combat Kills 54 Cogmind --------- Core Integrity 0/700 Matter 245/300 Energy 99/100 System Corruption 0% Temperature Cool (0) Movement Core (50) Location -7/Factory Parts ------- > --- POWER (1) -------- (None) > --- PROPULSION (4) --- (None) > --- UTILITY (5) ------ (None) > --- WEAPON (3) ------- (None) > --- INVENTORY (5) ---- Compact Matter Pod (150) Improved Utility Shielding Improved Light Armor Plating Improved Light Armor Plating Improved Light Armor Plating Peak State ------------ > --- POWER ------------ Nuclear Core > --- PROPULSION ------- Armored Treads Aluminum Leg Improved Carbon-fiber Leg Improved Carbon-fiber Leg > --- UTILITY ---------- Small Storage Unit Transmission Jammer Improved Utility Shielding Improved Light Armor Plating Improved Light Armor Plating > --- WEAPON ----------- Autogun Advanced Assault Cannon Scythe > --- INVENTORY -------- Nuclear Core Compact Matter Pod Improved Utility Shielding Improved Light Armor Plating Improved Light Armor Plating Improved Light Armor Plating Gauss Rifle Flak Gun [Rating: 40] Favorites ----------- Power Light Ion Engine Engine Light Ion Engine Power Core Nuclear Core Propulsion Aluminum Leg Treads Armored Treads Leg Aluminum Leg Utility Small Storage Unit Device Seismic Detector Storage Small Storage Unit Processor Signal Interpreter Protection Improved Utility Shielding Weapon Assault Rifle Energy Gun Medium Laser Energy Cannon Ion Cannon Ballistic Gun Assault Rifle Ballistic Cannon Advanced Assault Cannon Launcher Grenade Launcher Impact Weapon Heavy Flail Slashing Weapon Scythe Build | -11 -10 -10 -10 -9 -8 -7 ------- Run | Yrd Mat Min Exi Min Mat Fac Slots Evolved 6 | . . . . . 4 2 Power . | . . . . . . . Propulsion 2 | . . . . . 2 . Utility 3 | . . . . . 2 1 Weapon 1 | . . . . . . 1 Parts Attached 57 | 5 5 2 2 3 31 9 Power 6 | 1 . 1 . 1 3 . Engine 3 | 1 . 1 . 1 . . Core 3 | . . . . . 3 . Reactor . | . . . . . . . Propulsion 14 | 1 2 . . . 11 . Treads 3 | . . . . . 3 . Leg 11 | 1 2 . . . 8 . Wheel . | . . . . . . . Hover . | . . . . . . . Flight . | . . . . . . . Utility 23 | 1 1 1 2 1 12 5 Device 8 | . . . . 1 6 1 Storage 6 | 1 . 1 2 . 2 . Processor 1 | . 1 . . . . . Hackware . | . . . . . . . Protection 8 | . . . . . 4 4 Artifact . | . . . . . . . Weapon 14 | 2 2 . . 1 5 4 Energy Gun 2 | 1 . . . 1 . . Energy Cannon 1 | . . . . . . 1 Ballistic Gun 5 | 1 1 . . . 1 2 Ballistic Cannon 1 | . . . . . . 1 Launcher 3 | . 1 . . . 2 . Special Weapon . | . . . . . . . Impact Weapon 1 | . . . . . 1 . Slashing Weapon 1 | . . . . . 1 . Piercing Weapon . | . . . . . . . Special Melee Weapon . | . . . . . . . Unidentified Prototypes 1 | . . . . . 1 . Parts Lost 28 | . . . . 3 12 13 Power 2 | . . . . . 1 1 Propulsion 11 | . . . . 1 6 4 Utility 7 | . . . . . 3 4 Weapon 8 | . . . . 2 2 4 Highest Loss Streak 12 | . . . . 3 5 12 To Critical Strikes . | . . . . . . . Average Slot Usage (%) 91 | . 97 100 100 86 74 92 Engine 8 | . 14 14 14 12 . . Core 2 | . . . . . 6 6 Treads 2 | . . . . . 7 6 Leg 24 | . 28 28 28 23 17 20 Device 4 | . . . . . 15 6 Storage 10 | . 14 14 14 12 3 6 Processor 8 | . 12 14 14 12 . . Protection 5 | . . . . . 9 21 Ballistic Gun 10 | . 12 14 14 12 3 5 Launcher 9 | . 12 14 14 11 5 . Slashing Weapon 1 | . . . . . 1 6 Naked Turns 150 | . . . . 75 56 19 Heaviest Build 33 | 14 15 15 28 17 27 33 Greatest Support 46 | 10 20 20 20 20 46 46 Greatest Overweight (x) 4 | 2 . . 1 1 4 1 Average Overweight (x) . | . . . . . . . Largest Inventory Capacity 15 | 8 8 8 15 8 8 8 Average Capacity 7 | 7 8 8 8 7 6 7 Most Carried 8 | 6 8 8 8 8 8 8 Average Carried 7 | 4 7 7 7 7 5 7 Final Capacity 8 | 8 8 8 8 5 8 5 Final Carried 8 | 6 8 8 8 5 8 5 Class Distribution -------------------- 94% | Mutant 5% | Scavenger-Mutant Dominant Class ---------------- Mutant | -10/Materials Mutant | -10/Mines Mutant | -10/Exiles Mutant | -9/Mines Mutant | -8/Materials Mutant | -7/Factory Resources | -11 -10 -10 -10 -9 -8 -7 ----------- Run | Yrd Mat Min Exi Min Mat Fac Matter Collected 1045 | 243 68 135 . 113 427 59 Remotely . | . . . . . . . Salvage Created 866 | . 110 26 . 94 486 150 Parts 67 | . 21 7 . 3 25 11 Haulers Intercepted . | . . . . . . . Recyclers Shooed 1 | . . . . 1 . . Parts Field Recycled . | . . . . . . . Retrieved Matter . | . . . . . . . Parts Self-Destructed . | . . . . . . . Prevented . | . . . . . . . Kills | -11 -10 -10 -10 -9 -8 -7 ------- Run | Yrd Mat Min Exi Min Mat Fac Combat Hostiles Destroyed 30 | . 6 5 . 5 11 3 Melee 3 | . . . . . 2 1 Guns 6 | . 4 . . . . 2 AOE 19 | . 2 5 . 5 7 . Classes Destroyed 10 | . 3 . . 2 4 1 Worker 1 | . . . . . 1 . Builder 3 | . 2 . . . 1 . Operator 1 | . . . . . . 1 Watcher 3 | . 1 . . . 2 . Swarmer 12 | . 6 5 . . . 1 Grunt 11 | . . . . 3 7 1 Sentry 2 | . . . . . 1 1 Specialist 2 | . . . . . 2 . Hunter 1 | . . . . . 1 . Assembled 2 | . . . . 2 . . Best Kill Streak 9 | . 9 3 . 3 5 2 Combat Bots Only 3 | . 3 3 . 3 3 2 Max Kills in Single Turn 4 | . 4 2 . 2 1 1 Gunslinging . | . . . . . . . Exploded 2 | . 2 2 . 2 1 . Melee 1 | . . . . . 1 1 Uniques/NPCs Destroyed . | . . . . . . . Combat | -11 -10 -10 -10 -9 -8 -7 -------- Run | Yrd Mat Min Exi Min Mat Fac Hostile Shots Fired 472 | . 41 8 . 41 95 287 Missed 144 | . 6 5 . 10 27 96 Damage Taken 4942 | . 277 48 . 473 1703 2441 Core 1203 | . 73 6 . 166 256 702 Absorbed by Shields . | . . . . . . . Redirected to Shielding 134 | . . . . . 44 90 Regen/Repaired (Parts) 59 | . 59 . . . . . Core Remaining (%) 51 | 100 . . . 2 53 . Volleys Fired 54 | . 17 4 1 9 14 9 Largest 2 | . 2 2 1 1 1 2 Hottest 76 | . 50 50 20 30 33 76 Shots Fired 63 | . 19 5 1 9 14 15 Gun 32 | . 16 1 1 3 . 11 Cannon 4 | . . . . . . 4 Launcher 27 | . 3 4 . 6 14 . Special . | . . . . . . . Kinetic 36 | . 16 1 1 3 . 15 Thermal . | . . . . . . . Explosive 27 | . 3 4 . 6 14 . Electromagnetic . | . . . . . . . Robot Hit Streak 5 | . 4 1 . 2 2 5 Robot Miss Streak 6 | . 2 2 . 2 2 6 Penetration Max . | . . . . . . . Secondary Targets . | . . . . . . . Shots Hit Robots 46 | . 9 1 . 3 21 12 Core Hits 65 | . 13 6 . 10 20 16 Critical Kills . | . . . . . . . Critical Parts Destroyed 1 | . . . . . 1 . Critical Strikes 2 | . . . . . 1 1 Smash 1 | . . . . . 1 . Sever 1 | . . . . . . 1 Melee Attacks 33 | . . . . . 19 14 Impact 14 | . . . . . 14 . Slashing 19 | . . . . . 5 14 Piercing . | . . . . . . . Sneak Attacks 1 | . . . . . 1 . Combat Hostiles . | . . . . . . . Follow-up Attacks . | . . . . . . . Damage Inflicted 2996 | . 369 361 . 422 1446 398 Guns 278 | . 124 . . . . 154 Cannons 50 | . . . . . . 50 Explosions 1824 | . 245 361 . 422 796 . Melee 827 | . . . . . 633 194 Ramming 17 | . . . . . 17 . Kinetic 328 | . 124 . . . . 204 Thermal . | . . . . . . . Explosive 1824 | . 245 361 . 422 796 . Electromagnetic . | . . . . . . . Impact 451 | . . . . . 451 . Slashing 376 | . . . . . 182 194 Piercing . | . . . . . . . Highest Corruption 15 | . . . . . 15 . Average Corruption 15 | . . . . . 15 . Corruption Purged . | . . . . . . . Corruption Blocked . | . . . . . . . Effects 6 | . . . . . 6 . Message Errors 2 | . . . . . 2 . Matter Fused 2 | . . . . . 2 . Heat Flow Errors 1 | . . . . . 1 . Misdirections 1 | . . . . . 1 . Overload Shots . | . . . . . . . Overflow Damage 254 | . . 8 . . 246 . Projectiles . | . . . . . . . Explosions 50 | . . 8 . . 42 . Melee 204 | . . . . . 204 . Knockbacks 5 | . . . . . 4 1 Impact 4 | . . . . . 4 . Kinetic 1 | . . . . . . 1 Secondary . | . . . . . . . Self-Inflicted Damage 283 | . . 11 . 18 254 . Shots 9 | . . 1 . 1 7 . Rammed 2 | . . . . . 2 . Targets Rammed 2 | . . . . . 2 . Kicked . | . . . . . . . Crushed . | . . . . . . . Highest Temperature 231 | . . . . 16 231 68 Average Temperature 51 | . . . . 7 93 31 Received Heat Transfer 1370 | . . 9 . 164 414 783 Siege Activations . | . . . . . . . Robots Corrupted . | . . . . . . . Combat Hostiles . | . . . . . . . Parts Fried . | . . . . . . . Impact Corruptions 7 | . . . . . 7 . Robots Melted . | . . . . . . . Combat Hostiles . | . . . . . . . Parts Melted . | . . . . . . . Heat Transferred . | . . . . . . . Parts Sabotaged . | . . . . . . . Parts Stolen . | . . . . . . . Parts Stripped . | . . . . . . . Power Chain Reactions . | . . . . . . . Alert | -11 -10 -10 -10 -9 -8 -7 ------- Run | Yrd Mat Min Exi Min Mat Fac Peak Influence 318 | . 226 318 . 142 256 201 Initial 95 | . . 87 . . 6 95 Average 124 | . 129 180 . 67 119 124 Maximum Alert Level 1 | . 1 1 . . 1 1 Low Security (%) 83 | 100 85 66 . 100 74 95 Level 1 16 | . 14 33 . . 25 4 Level 2 . | . . . . . . . Level 3 . | . . . . . . . Level 4 . | . . . . . . . Level 5 . | . . . . . . . High Security . | . . . . . . . Max Security . | . . . . . . . Squads Dispatched 6 | . 1 . . . 2 3 Investigation 3 | . 1 . . . . 2 Extermination . | . . . . . . . Reinforcement 3 | . . . . . 2 1 Assault . | . . . . . . . Garrison . | . . . . . . . Intercept . | . . . . . . . Searches Triggered . | . . . . . . . Construction Impeded . | . . . . . . . Haulers Reinforced . | . . . . . . . Active Scanning Responses . | . . . . . . . Cargo Convoy Interrupts . | . . . . . . . Stealth | -11 -10 -10 -10 -9 -8 -7 --------- Run | Yrd Mat Min Exi Min Mat Fac Distress Signals 3 | . 1 . . . 2 . Communications Jammed . | . . . . . . . Distress Signals . | . . . . . . . Times Spotted 96 | . 10 9 . 20 32 25 Peak Tracking Total 11 | . 5 3 . 10 6 11 Tactical Retreats 11 | . . 1 . 5 2 3 Traps | -11 -10 -10 -10 -9 -8 -7 ------- Run | Yrd Mat Min Exi Min Mat Fac Traps Triggered 3 | . 1 . . . . 2 Indirectly . | . . . . . . . Trap Hack Attempts . | . . . . . . . Triggered . | . . . . . . . Disarmed . | . . . . . . . Reprogrammed . | . . . . . . . Reused 2 | . . 2 . . . . Traps Extracted . | . . . . . . . Installed 3 | . . 3 . . . . Triggered 2 | . . 2 . . . . Machines | -11 -10 -10 -10 -9 -8 -7 ---------- Run | Yrd Mat Min Exi Min Mat Fac Machines Disabled 5 | . 2 1 . 1 1 . Max in Single Turn 1 | . 1 1 . 1 1 . Machines Repaired . | . . . . . . . Machines Dismantled . | . . . . . . . Machines Sabotaged . | . . . . . . . Overloaded Fab Kills . | . . . . . . . Hacking | -11 -10 -10 -10 -9 -8 -7 --------- Run | Yrd Mat Min Exi Min Mat Fac Machines Accessed 14 | . 2 2 4 . 2 4 Terminals 7 | . 1 1 . . 2 3 Fabricators 1 | . . . . . . 1 Repair Stations 1 | . 1 . . . . . Recycling Units . | . . . . . . . Scanalyzers . | . . . . . . . Garrison Access . | . . . . . . . Total Hacks 25 | . 5 3 4 . 5 8 Successful 13 | . 3 1 4 . 2 3 Failed 12 | . 2 2 . . 3 5 Catastrophic 3 | . . . . . . 3 Database Lockouts . | . . . . . . . Manual 8 | . 1 . . . 3 4 Terminals 15 | . 2 2 . . 5 6 Fabricators 2 | . . . . . . 2 Repair Stations 3 | . 3 . . . . . Recycling Units . | . . . . . . . Scanalyzers . | . . . . . . . Garrison Access . | . . . . . . . Terminal Hacks 10 | . 1 1 4 . 2 2 Record 4 | . . . 4 . . . Open Door 1 | . . 1 . . . . Branch Access Points 1 | . . . . . 1 . Terminal Index 1 | . . . . . 1 . Locate Traps 1 | . . . . . . 1 Dispatch Records 1 | . 1 . . . . . Zone Layout 1 | . . . . . . 1 Fabricator Hacks 1 | . . . . . . 1 Build 1 | . . . . . . 1 Repair Station Hacks 2 | . 2 . . . . . Scan Component 1 | . 1 . . . . . Repair 1 | . 1 . . . . . Recycling Unit Hacks . | . . . . . . . Scanalyzer . | . . . . . . . Garrison Access Hacks . | . . . . . . . Unauthorized Hacks . | . . . . . . . Terminals . | . . . . . . . Fabricators . | . . . . . . . Repair Stations . | . . . . . . . Recycling Units . | . . . . . . . Scanalyzers . | . . . . . . . Garrison Access . | . . . . . . . Data Cores Recovered 1 | . . . . . . 1 Used 1 | . . . . . . 1 Hacking Detections 9 | . 2 1 . . 2 4 Full Trace Events 2 | . . . . . . 2 Feedback Events . | . . . . . . . Feedback Blocked . | . . . . . . . Robot Schematics Acquired . | . . . . . . . Robots Built 1 | . . . . . . 1 Authchips . | . . . . . . . Time 40 | . . . . . . 40 Total Robot Build Rating 1 | . . . . . . 1 Part Schematics Acquired . | . . . . . . . Parts Built . | . . . . . . . Authchips . | . . . . . . . Time . | . . . . . . . Total Part Build Rating . | . . . . . . . Parts Repaired 1 | . 1 . . . . . Time 26 | . 26 . . . . . Parts Recycled . | . . . . . . . Recycled Matter . | . . . . . . . Retrieved Matter . | . . . . . . . Retrieved Components . | . . . . . . . Parts Scanalyzed . | . . . . . . . Part Schematics Acquired . | . . . . . . . Parts Damaged . | . . . . . . . Bothacking | -11 -10 -10 -10 -9 -8 -7 ------------ Run | Yrd Mat Min Exi Min Mat Fac Used RIF Installer . | . . . . . . . Robots Hacked . | . . . . . . . Non-combat . | . . . . . . . Combat . | . . . . . . . Robot Hacks Applied . | . . . . . . . Relay Couplers Released . | . . . . . . . Fabnet Peak Effective % . | . . . . . . . Robots Rewired . | . . . . . . . Allies Hacked . | . . . . . . . Hacks Repelled . | . . . . . . . Allies | -11 -10 -10 -10 -9 -8 -7 -------- Run | Yrd Mat Min Exi Min Mat Fac Total Allies 4 | . . 3 . . . 1 Largest Group 3 | . . 3 3 3 . 1 Highest-Rated Group 40 | . . 40 40 40 . 8 Highest-Rated Ally 16 | . . 16 16 16 . 8 Total Orders . | . . . . . . . Ally Attacks 21 | . . 6 . 15 . . Total Damage 214 | . . 71 . 143 . . Kills 4 | . . 3 . 1 . . Allies Corrupted . | . . . . . . . Allies Melted . | . . . . . . . Intel | -11 -10 -10 -10 -9 -8 -7 ------- Run | Yrd Mat Min Exi Min Mat Fac Robot Analysis Total . | . . . . . . . Derelict Logs Recovered 3 | . . 1 . 2 . . Drone Launches 16 | . . . . . 16 . Drone Recoveries . | . . . . . . . Exploration | -11 -10 -10 -10 -9 -8 -7 ------------- Run | Yrd Mat Min Exi Min Mat Fac Turns Passed 3624 | 67 193 786 694 591 714 579 Spaces Moved 2633 | 36 99 580 557 536 435 390 Core 282 | 9 . . . 147 87 39 Treads 56 | . . . . . 56 . Legs 2295 | 27 99 580 557 389 292 351 Wheels . | . . . . . . . Hover . | . . . . . . . Flight . | . . . . . . . Fastest Speed 50 | 50 120 120 120 50 50 50 Average Speed 116 | 151 120 120 120 101 125 115 Slowest Speed 260 | 190 120 120 190 190 260 190 Overloaded Moves . | . . . . . . . Propulsion Burnouts . | . . . . . . . Robots Hopped . | . . . . . . . Cave-ins Triggered 1 | . . . . . 1 . Exploration Rate (%) 48 | 4 25 90 93 78 36 13 Regions Visited 6 Branch Regions 3 Pre-discovered Areas 2 | . . 1 . 1 . . Known Exits Taken 5 | . 1 1 1 1 1 . Unknown Exits Taken 1 | 1 . . . . . . Scrap Searched 6 | . . 3 . 3 . . Spaces Dug 25 | . 4 . . . 14 7 Terrain Destroyed 242 | . 21 31 . 32 150 8 Melee 7 | . . . . . . 7 Projectile 1 | . . . . . . 1 AOE 234 | . 21 31 . 32 150 . Terrain Rammed . | . . . . . . . Walls Destroyed . | . . . . . . . Machines Disabled . | . . . . . . . Actions | -11 -10 -10 -10 -9 -8 -7 --------- Run | Yrd Mat Min Exi Min Mat Fac Total 3059 | 46 153 668 580 574 553 485 Wait 214 | . 29 67 16 22 29 51 Move 2626 | 35 98 579 556 535 433 390 Hop . | . . . . . . . Pick Up 36 | 6 2 5 3 2 14 4 Fast Attach 35 | 5 3 1 1 2 19 4 Attach 12 | . 1 . . . 7 4 Detach 2 | . 1 . . . . 1 Swap 10 | . 1 1 1 1 5 1 Drop 29 | . 1 8 2 3 8 7 Fire 54 | . 17 4 1 9 14 9 Melee 33 | . . . . . 19 14 Ram 2 | . . . . . 2 . Kick . | . . . . . . . Crush . | . . . . . . . Escape Stasis 1 | . . . . . 1 . Rewire 2 | . . . . . 2 . Trap 3 | . . 3 . . . . Miscellaneous . | . . . . . . . Route ------- -11/Scrapyard -10/Materials -10/Mines (discovered 3 exits: *Mat x2 / *Exi) -10/Exiles (discovered 2 exits: *Min x2) -9/Mines (discovered 2 exits: *Mat x2) -8/Materials (discovered 2 exits: *Fac x2) -7/Factory History --------- Turn | Location | Event 2 | -11/Scrapyard | Met Revision 17 8 | -11/Scrapyard | Discovered new exit (range 15) 68 | -11/Scrapyard | Entered Materials 219 | -10/Materials | Repaired Assault Rifle 237 | -10/Materials | Discovered new exit (range 13) 259 | -10/Materials | Identified exit to Mines 261 | -10/Materials | Entered Mines 276 | -10/Mines | Learned location of Zion (-7) 309 | -10/Mines | Assisted by bots powering up and referring to "LRC-V3" 316 | -10/Mines | Build established: Mutant 480 | -10/Mines | Found a hidden stash of uninstalled traps 534 | -10/Mines | Received a Rocket Launcher from a helpful Derelict 566 | -10/Mines | Discovered new exit (range 7) 577 | -10/Mines | Identified exit to Materials 619 | -10/Mines | Discovered exit to Materials (range 6) 787 | -10/Mines | Found the Drone Emporium 796 | -10/Mines | Found Prototype Device 993 | -10/Mines | Deemed a non-threat by the Exiles lab entrance 993 | -10/Mines | Discovered new exit (range 5) 996 | -10/Mines | Identified exit to Exiles 1047 | -10/Mines | Entered Exiles 1047 | -10/Exiles | Found Exiles lab abandoned 1047 | -10/Exiles | Accompanied by 3 allies 1073 | -10/Exiles | Discovered new exit (range 15) 1640 | -10/Exiles | Discovered new exit (range 11) 1651 | -10/Exiles | Identified exit to Mines 1741 | -10/Exiles | Entered Mines 1741 | -9/Mines | Accompanied by 3 allies 1755 | -9/Mines | Learned 4 Materials zone layouts 1828 | -9/Mines | Discovered new exit (range 5) 1832 | -9/Mines | Identified exit to Materials 1863 | -9/Mines | Discovered exit to Materials (range 5) 2050 | -9/Mines | Joined a pair of Derelicts in attacking an 0b10 outpost 2158 | -9/Mines | Learned location of Storage (-9) 2181 | -9/Mines | Assembled infested the area 2186 | -9/Mines | Assisted by a Guerilla fighting off Assembled 2241 | -9/Mines | Core integrity fell below 50% 2245 | -9/Mines | Lost 3 allies 2250 | -9/Mines | Released all parts (4) 2253 | -9/Mines | Core integrity fell below 20% 2281 | -9/Mines | Lost 3 parts (1n2w) 2332 | -9/Mines | Entered Materials 2332 | -8/Materials | Evolved 4 slots: Propulsion x2, Utility x2 2333 | -8/Materials | Identified exit to Factory 2333 | -8/Materials | Identified Decoy Drone Bay 2389 | -8/Materials | Lost 3 allies 2440 | -8/Materials | Lost 13 allies 2630 | -8/Materials | Lost 5 parts (3n1u1w) 2950 | -8/Materials | Crushed by falling debris 2951 | -8/Materials | System corruption reached 10% 2981 | -8/Materials | Lost 4 parts (2n1u1w) 3040 | -8/Materials | Discovered exit to Factory (range 4) 3046 | -8/Materials | Entered Factory 3046 | -7/Factory | Evolved 2 slots: Utility x1, Weapon x1 3253 | -7/Factory | Fabricated R-06 Scavenger (x1) 3603 | -7/Factory | Core integrity fell below 50% 3606 | -7/Factory | Released all parts (2) 3614 | -7/Factory | Core integrity fell below 20% 3625 | -7/Factory | Destroyed by S-27 Virus with Autogun Last Messages --------------- G-47 Trooper destroyed. Adv. Assault Cannon destroyed. Imp. Light Armor Plating destroyed. S-27 Virus destroyed. G-47 Trooper destroyed. K-01 Serf collects debris. Slug penetrates Wall. G-47 Trooper destroyed. K-01 Serf collects debris. Flak Gun destroyed. Slug penetrates Wall. K-01 Serf collects debris. Gauss Rifle destroyed. Transmission Jammer destroyed. K-01 Serf collects debris. Imp. Utility Shielding destroyed. Released Sml. Storage Unit. Released Scythe. U-05 Engineer builds a Wall. Critical hit (Burn: +37). Map ----- +----------------------------------------------------+ | ?????????????????????????????????????????????????? | | ?????????????????????????????????????????????????? | | ?????????????????????????????????????????????????? | | ?????????????????????????????????????????????????? | | ?????????????????????????????????????????????????? | | ?????????????????????????????????????????????????? | | ??????????? ?????????????????????????????????????? | | ????????? ????????????????????????????????????? | | ???????# ????????????????????????????????????? | | ???????# ???????????????? ??????????????????? | | ???????# ?????????????? ??????????????????? | | ???????# ?????????????? ??????????????????? | | ???????# ?????????????# #?????????????????? | | ???????# ?????????????# #?????????????????? | | ???????# #????????????# #############?????? | | ???????# #????????????# ????? | | ???????# #######+###### ????? | | ???????# ! ?????? | | ???????# ??????? | | ???????# gY ![[ "" [[[ "" ??????? | | ???????# = g [[ ^"" [[[ "" #???????? | | ???????# %%= gg [t ^""" [[ """ #???????? | | ???????# ==%########s """ """ #???????? | | ???????# *%[# * # s """ """ #???????? | | ???????# *!# ! # #???????? | | ???????# /*#! # @ #???????? | | ???????# # " F" u ######## #?####### | | ???????# # """" # ######+#####???# #?# | | ???????# # # ## ! #???# #?# | | ???????# ######## ## !! #?### ### | | ???????# #??????# ## !! #?# # | | ???????# #??????# ## ! ! #?# # | | ???????# #??????#+############?#! # | | ???????# ??????? ?????? + / | | ???????# ??????? ?????????#### # | | ???????# ??????? " ????????????# # | | ???????# ??????? " ????????????# # | | ???????# ??????? " ????????????## ###### | | ???????? ??????? ? ?????????????# ?????# | | ?????????? ??????? ? ?????????????# ?????####### | | ???????????????????? ? ?????????????# ???????????? | | ???????????????????? ? ?????????????# ???????????? | | ????????????????????????????????????# ???????????? | | ?????????????????????????????????????????????????? | | ?????????????????????????????????????????????????? | | ?????????????????????????????????????????????????? | | ?????????????????????????????????????????????????? | | ?????????????????????????????????????????????????? | | ?????????????????????????????????????????????????? | | ?????????????????????????????????????????????????? | +----------------------------------------------------+ Best States ------------- Heat Dissipation 34 Energy Generation 14 Energy Capacity 265 Matter Stores 300 Matter Capacity 300 Sight Range 16 Terrain Scan Density 10 Jamming Range 12 Armor Coverage 300 Propulsion Shielding 66 Utility Shielding 66 Evasion (%) 55 Recoil Reduction 6 Item Schematics ----------------- None Robot Schematics ------------------ None Fabricated ------------ R-06 Scavenger | x1 | -7/Factory | Preloaded Alien Tech Used ----------------- None Achievements -------------- Release The Drones! Slippery One Challenges ------------ None Game ------ Seed MagneticGuidanceTrap Manual? 0 Play Time 00:51:00 Cumulative 12.7 hours Start 2024.04.04 @ 21:29:16 End 2024.04.05 @ 11:15:31 Sessions 3 Manual Loads 0 Difficulty Rogue Special Mode None Game No. 15 Rogue 11 Adventurer 0 Explorer 4 Win Type - Total 0 Types 0/0/0/0/0/0/0/0/0 Lore% 17 Gallery% 19 Achievement% 21 Wizard Run 0 Options --------- Layout 1 ASCII 0 Keyboard 0 Movement Mouse Keybinds 0 Fullscreen 1 Font 32/SmallcapsGlow Map View 50x35 Zoom Use 0% Tactical HUD 0 Map Filters NONE Filters NONE Steam 1 RUN: 57a547dd-72d2-4b7d-b9bf-521d7a6db53f